Cogmind - Beta 16 @@@ ROGUE MODE // 2026.01.10 @ 23:34:52 Player: Decinym Result: Destroyed by CR-A16 with Phasing Sabre Performance ------------- Evolutions (4) 2000 Regions Visited (13) 2600 Robots Destroyed (190) 950 Value Destroyed (5255) 5255 Prototype IDs (25) 500 Alien Tech Used (0) 0 Bonus (31) 31 TOTAL SCORE: 11336 Bonus ------- High Alert Combat Kills 43 Follower Combat Kills 127 Met Data Miner 300 Met Imprinter 300 Friendly Fire -739 Cogmind --------- Core Integrity 0/850 Matter 37/300 Energy 100/100 System Corruption 0% Temperature Cool (0) Movement Core (700) Ox13 Location -6/Zion Parts ------- > --- POWER (2) -------- (None) > --- PROPULSION (4) --- (None) > --- UTILITY (7) ------ High-capacity Storage Unit Experimental Optical Array Improved Salvage Targeting Computer > --- WEAPON (2) ------- (None) > --- INVENTORY (20) --- Advanced Signal Interpreter Makeshift Terrain Scanner Makeshift Transmission Jammer Experimental System Shield Proton Cannon Gauss Rifle Precision Grenade Launcher Long-range Missile Launcher Great Axe CR-A16's Pointy Stick Peak State ------------ > --- POWER ------------ Fission Core Fission Core > --- PROPULSION ------- Armored Treads Medium Treads Improved Medium Treads Improved Medium Treads > --- UTILITY ---------- Improved Heat Sink High-capacity Storage Unit Experimental Optical Array Improved Salvage Targeting Computer Improved Medium Armor Plating Makeshift Light Armor Plating Layered Medium Armor Plating > --- WEAPON ----------- Precision Assault Rifle Precision Assault Rifle > --- INVENTORY -------- F-cell Engine Light Treads Light Treads Advanced Energy Well Advanced Signal Interpreter Makeshift Terrain Scanner Makeshift Transmission Jammer Improved Medium Armor Plating Improved Shield Generator Experimental System Shield Proton Cannon Proton Cannon Proton Cannon Gauss Rifle Gauss Rifle Precision Grenade Launcher Rocket Array Long-range Missile Launcher Great Axe CR-A16's Pointy Stick [Rating: 75] Favorites ----------- Power Fission Core Engine Heavy Ion Engine Power Core Fission Core Propulsion Light Treads Treads Light Treads Leg Improved Titanium Leg Utility High-capacity Storage Unit Device Improved Shield Generator Storage High-capacity Storage Unit Processor Improved Salvage Targeting Computer Hackware Hacking Suite Protection Improved Medium Armor Plating Weapon Precision Assault Rifle Energy Gun Beam Rifle Energy Cannon Advanced Beam Cannon Ballistic Gun Precision Assault Rifle Ballistic Cannon Mini Assault Cannon Launcher Rocket Array Special Weapon Remote Datajack Slashing Weapon Great Axe Piercing Weapon CR-A16's Pointy Stick Build | -11 -10 -9 -9 -8 -7 -7 -7 -7 -6 -6 -6 -6 -6 ------- Run | Yrd Mat Mat Min Mat Fac Low Low Dat Pro Fac Low Low Zio Slots Evolved 8 | . . 2 . 2 2 . . . . 2 . . . Power 1 | . . . . . 1 . . . . . . . . Propulsion 2 | . . 1 . 1 . . . . . . . . . Utility 5 | . . 1 . 1 1 . . . . 2 . . . Weapon . | . . . . . . . . . . . . . . Parts Attached 117 | . 15 17 1 15 24 2 . . 1 26 1 1 14 Power 14 | . 2 2 . 1 3 1 . . . 3 . 1 1 Engine 9 | . 1 2 . 1 3 1 . . . . . . 1 Core 5 | . 1 . . . . . . . . 3 . 1 . Reactor . | . . . . . . . . . . . . . . Propulsion 34 | . 5 6 . 7 6 . . . . 8 . . 2 Treads 28 | . 3 6 . 7 3 . . . . 7 . . 2 Leg 6 | . 2 . . . 3 . . . . 1 . . . Wheel . | . . . . . . . . . . . . . . Hover . | . . . . . . . . . . . . . . Flight . | . . . . . . . . . . . . . . Utility 39 | . 3 6 1 3 8 1 . . . 10 1 . 6 Device 17 | . 1 5 1 2 3 1 . . . 2 1 . 1 Storage 5 | . 2 . . . 2 . . . . 1 . . . Processor 5 | . . . . . . . . . . 2 . . 3 Hackware 3 | . . . . 1 . . . . . 2 . . . Protection 9 | . . 1 . . 3 . . . . 3 . . 2 Artifact . | . . . . . . . . . . . . . . Weapon 30 | . 5 3 . 4 7 . . . 1 5 . . 5 Energy Gun 6 | . 4 1 . . . . . . . 1 . . . Energy Cannon 9 | . . 2 . 3 1 . . . . 1 . . 2 Ballistic Gun 6 | . . . . . 3 . . . . 2 . . 1 Ballistic Cannon 1 | . . . . . 1 . . . . . . . . Launcher 5 | . 1 . . . 2 . . . 1 1 . . . Special Weapon 1 | . . . . . . . . . . . . . 1 Impact Weapon . | . . . . . . . . . . . . . . Slashing Weapon 1 | . . . . 1 . . . . . . . . . Piercing Weapon 1 | . . . . . . . . . . . . . 1 Special Melee Weapon . | . . . . . . . . . . . . . . Unidentified Prototypes 10 | . . 2 . . 3 . . . . 2 . . 3 Parts Lost 32 | . 5 3 . . 1 . . . . 1 . 1 21 Power 5 | . 1 1 . . . . . . . . . . 3 Propulsion 9 | . 2 . . . . . . . . . . 1 6 Utility 9 | . . 2 . . 1 . . . . . . . 6 Weapon 9 | . 2 . . . . . . . . 1 . . 6 Highest Loss Streak 13 | . 4 2 . . 1 . . . . 1 . 1 13 To Critical Strikes 1 | . . . . . . . . . . . . 1 . Average Backups 17 | . 8 12 15 14 14 18 20 20 20 18 20 18 19 Power 1 | . . 1 2 2 1 1 1 1 1 1 2 1 . Propulsion 2 | . 2 2 4 3 3 3 3 3 3 2 3 2 1 Utility 4 | . 2 2 3 2 3 6 8 8 8 5 4 4 5 Weapon 7 | . 3 5 6 6 7 8 8 8 8 8 10 10 10 Tool/Special . | . . . . . . . . . . . . . . Unused Backups 40 | . 10 5 1 3 4 2 . . . 3 . . 12 Power 5 | . 2 2 . . . . . . . . . . 1 Propulsion 6 | . 5 1 . . . . . . . . . . . Utility 12 | . 1 . . 1 3 1 . . . . . . 6 Weapon 17 | . 2 2 1 2 1 1 . . . 3 . . 5 Tool/Special . | . . . . . . . . . . . . . . Average Slot Usage (%) 93 | . 96 95 99 99 91 83 84 70 84 94 100 99 97 Engine 8 | . 9 9 11 9 15 15 15 15 15 4 . . . Core 4 | . 3 1 . . . . . . . 7 13 12 12 Treads 19 | . 19 29 33 35 13 . . . . 20 26 26 25 Leg 7 | . 8 2 . . 12 23 23 23 23 4 . . . Device 13 | . 11 13 21 18 15 14 15 15 15 13 13 13 7 Storage 7 | . 14 11 11 9 7 7 7 7 7 6 6 6 6 Processor 3 | . . . . . . . . . . 5 6 6 12 Protection 9 | . . 4 . . 6 7 7 7 7 16 20 20 17 Energy Gun 1 | . 22 10 . . . . . . . . . . . Energy Cannon 4 | . . 11 22 16 4 . . . . . . . . Ballistic Gun 9 | . 5 . . . 9 15 15 1 14 12 13 13 12 Peak Build Rating 75 | . 14 20 22 27 52 54 53 53 53 70 67 67 75 Average Rating 47 | . 10 16 19 24 43 51 53 43 53 64 66 63 69 On Entrance 39 | 6 6 14 20 20 27 50 53 53 53 53 66 67 64 Avg Prop Armor Cover (%) 6 | . 8 6 . . . . . . . . . . . Naked Turns . | . . . . . . . . . . . . . . Heaviest Build 95 | 11 32 40 40 44 89 91 91 91 91 95 89 91 91 Greatest Support 118 | 20 40 60 60 80 80 70 70 70 70 118 108 108 108 Greatest Overweight (x) 15 | . 3 1 . . 1 1 1 1 1 1 . . 15 Average Overweight (x) . | . . . . . . 1 1 1 1 . . . . Largest Inventory Capacity 20 | . 15 15 15 15 20 20 20 20 20 20 20 20 20 Average Capacity 17 | . 11 15 15 15 15 20 20 20 20 20 20 20 20 Most Carried 20 | . 10 15 15 15 18 20 20 20 20 20 20 20 20 Average Carried 17 | . 8 12 15 14 14 18 20 20 20 18 20 18 19 Final Capacity 20 | 8 15 15 15 15 20 20 20 20 20 20 20 20 20 Final Carried 20 | 6 9 15 15 14 18 20 20 20 20 20 20 19 10 Class Distribution -------------------- 86% | Mutant 13% | Scavenger-Mutant Dominant Class ---------------- Mutant | -10/Materials Mutant | -9/Materials Mutant | -9/Mines Scavenger-Mutant | -8/Materials Mutant | -7/Factory Mutant | -7/Lower Caves Mutant | -7/Lower Caves Mutant | -7/Data Miner Mutant | -6/Proximity Caves Mutant | -6/Factory Mutant | -6/Lower Caves Mutant | -6/Lower Caves Mutant | -6/Zion Resources | -11 -10 -9 -9 -8 -7 -7 -7 -7 -6 -6 -6 -6 -6 ----------- Run | Yrd Mat Mat Min Mat Fac Low Low Dat Pro Fac Low Low Zio Matter Collected 4444 | 185 186 232 56 26 802 533 50 . 118 1060 45 184 967 Remotely . | . . . . . . . . . . . . . . Salvage Created 7238 | . 432 1312 33 525 1582 412 21 . 224 1109 . 109 1479 Parts 423 | . 23 82 2 21 70 11 3 . 11 66 . 7 127 Haulers Intercepted 11 | . . 5 . 1 4 . . . . 1 . . . Recyclers Shooed 11 | . . 1 . 4 3 . . . . 3 . . . Parts Field Recycled . | . . . . . . . . . . . . . . Retrieved Matter . | . . . . . . . . . . . . . . Parts Self-Destructed 35 | . . . . . . 11 6 . 9 . . 9 . Prevented 2 | . . . . . . 2 . . . . . . . Parts Restored . | . . . . . . . . . . . . . . Kills | -11 -10 -9 -9 -8 -7 -7 -7 -7 -6 -6 -6 -6 -6 ------- Run | Yrd Mat Mat Min Mat Fac Low Low Dat Pro Fac Low Low Zio Combat Hostiles Destroyed 104 | . 10 25 4 8 27 6 1 . 5 13 . 2 3 Guns 53 | . 9 8 . . 11 6 1 . 1 13 . 2 2 Cannons 33 | . . 16 3 7 7 . . . . . . . . AOE 14 | . 1 . . . 8 . . . 4 . . . 1 Classes Destroyed 19 | . 2 8 1 . 3 . . . . 1 . . 4 Worker 6 | . 1 . . . 5 . . . . . . . . Builder 5 | . . 3 . . 2 . . . . . . . . Tunneler 1 | . . . . . . . . . . 1 . . . Hauler 11 | . . 5 . 1 4 . . . . 1 . . . Recycler 5 | . . . . . 4 . . . . 1 . . . Operator 2 | . . 1 . 1 . . . . . . . . . Watcher 2 | . . 1 . 1 . . . . . . . . . Swarmer 15 | . . 4 2 . 5 1 1 . . . . 2 . Grunt 52 | . 10 16 . 4 12 3 . . 4 3 . . . Brawler 3 | . . 2 . 1 . . . . . . . . . Duelist 3 | . . 1 . . 1 1 . . . . . . . Sentry 10 | . . 2 . 3 2 1 . . . 2 . . . Demolisher 2 | . . . 2 . . . . . . . . . . Hunter 6 | . . . . . 1 . . . . 5 . . . Programmer 10 | . . . . . 6 . . . 1 3 . . . Zionite 51 | . . . . . . . . . . . . . 51 Decomposer 1 | . . . . . . 1 . . . . . . . Packrat 2 | . . . . . . 1 . . 1 . . . . Tinkerer 2 | . . . . . . . . . . . . . 2 Surgeon 1 | . . . . . . . . . . . . . 1 Thug 1 | . . . . . . . . . . . . . 1 Butcher 1 | . . . . . . . . . . . . . 1 Mutant 2 | . . . . . . . . . . . . . 2 Best Kill Streak 23 | . 4 7 2 2 7 3 1 . 4 2 . 2 23 Combat Bots Only 6 | . 3 5 2 2 6 3 1 . 4 2 . 2 2 Max Kills in Single Turn 3 | . 1 2 1 1 3 1 1 . 3 1 . 1 2 Gunslinging . | . . . . . . . . . . . . . . Exploded 3 | . 1 . . . 2 . . . 3 . . . 1 Melee . | . . . . . . . . . . . . . . Uniques/NPCs Destroyed 1 | . . . . . . . . . . . . . 1 Imprinter (-6/Zion) Combat | -11 -10 -9 -9 -8 -7 -7 -7 -7 -6 -6 -6 -6 -6 -------- Run | Yrd Mat Mat Min Mat Fac Low Low Dat Pro Fac Low Low Zio Hostile Shots Fired 1095 | . 89 135 11 32 143 66 2 . 23 186 . 26 382 Missed 331 | . 23 27 3 10 44 22 1 . 10 62 . 10 119 Hits 764 | . 66 108 8 22 99 44 1 . 13 124 . 16 263 Melee 30 | . . 5 . . . 7 . . . . . 3 15 Projectile 734 | . 66 103 8 22 99 37 1 . 13 124 . 13 248 AOE 2 | . . . 2 . . . . . . . . . . Critical Strikes 23 | . . 2 . 1 3 1 . . 2 3 . 1 10 Damage Taken 9932 | . 921 988 133 254 845 454 10 . 156 1465 . 188 4518 Core 1357 | . 180 201 4 11 81 10 . . . 72 . . 798 Absorbed by Shields 1770 | . . 233 50 96 339 179 4 . 57 547 . 70 195 Redirected to Shielding 13 | . . 13 . . . . . . . . . . . Ignored by Resistances 42 | . . . . . 42 . . . . . . . . Regen/Repaired (Parts) 1044 | . . . . 123 . . . . . . . . 921 Core Remaining (%) 72 | 100 28 . 48 98 . . . . 87 . . . . Volleys Fired 485 | . 45 82 10 32 69 23 2 . 11 68 . 14 129 Largest 2 | . 2 2 2 2 2 2 2 . 2 2 . 2 2 Hottest 136 | . 112 136 136 136 120 56 56 . 56 56 . 56 75 Shots Fired 944 | . 84 161 21 64 129 47 5 . 20 136 . 28 249 Gun 676 | . 78 55 . . 69 47 5 . 18 136 . 28 240 Cannon 244 | . . 106 21 64 50 . . . . . . . 3 Launcher 21 | . 6 . . . 10 . . . 2 . . . 3 Special 3 | . . . . . . . . . . . . . 3 Kinetic 555 | . 12 . . . 69 47 5 . 18 136 . 28 240 Thermal 350 | . 54 161 21 64 50 . . . . . . . . Explosive 15 | . . . . . 10 . . . 2 . . . 3 Electromagnetic 21 | . 18 . . . . . . . . . . . 3 Robot Hit Streak 24 | . 9 17 7 11 22 12 1 . 8 24 . 7 20 Robot Miss Streak 5 | . 5 4 5 4 4 2 1 . 1 2 . 4 2 Penetration Max . | . . . . . . . . . . . . . . Secondary Targets 13 | . 1 . . . . 1 . . . 1 . 1 9 Max Gunslinging Chain 1 | . 1 . . . . 1 . . . 1 . 1 1 Shots Hit Robots 685 | . 47 94 10 41 95 36 2 . 15 115 . 20 210 Core Hits 357 | . 21 60 4 16 64 16 1 . 23 47 . 6 99 Critical Kills 2 | . . 1 . 1 . . . . . . . . . Critical Parts Destroyed . | . . . . . . . . . . . . . . Critical Strikes 9 | . 3 4 . 1 . . . . . . . . 1 Burn 6 | . 3 3 . . . . . . . . . . . Meltdown 2 | . . 1 . 1 . . . . . . . . . Impale 1 | . . . . . . . . . . . . . 1 Melee Attacks 29 | . . . . 3 12 . . . . 2 . . 12 Impact . | . . . . . . . . . . . . . . Slashing 17 | . . . . 3 12 . . . . 2 . . . Piercing 12 | . . . . . . . . . . . . . 12 Sneak Attacks 2 | . . . . . 1 . . . . 1 . . . Combat Hostiles . | . . . . . . . . . . . . . . Follow-up Attacks . | . . . . . . . . . . . . . . Damage Inflicted 16315 | . 886 1864 248 880 3416 719 42 . 918 2133 . 386 4823 Guns 9493 | . 635 586 . . 1111 719 42 . 305 2038 . 386 3671 Cannons 3316 | . . 1249 224 840 918 . . . . . . . 85 Explosions 2764 | . 251 . . . 1177 . . . 605 . . . 731 Melee 514 | . . . . . 93 . . . . 85 . . 336 Ramming 228 | . . 29 24 40 117 . . . 8 10 . . . Kinetic 8350 | . 78 . . . 1111 719 42 . 305 2038 . 386 3671 Thermal 4315 | . 498 1835 224 840 918 . . . . . . . . Explosive 2513 | . . . . . 1177 . . . 605 . . . 731 Electromagnetic 395 | . 310 . . . . . . . . . . . 85 Impact . | . . . . . . . . . . . . . . Slashing 178 | . . . . . 93 . . . . 85 . . . Piercing 336 | . . . . . . . . . . . . . 336 Highest Corruption 8 | . 1 7 8 . 4 4 4 4 6 5 5 5 5 Average Corruption 4 | . 1 6 7 . 2 4 4 4 5 3 5 5 5 Corruption Purged . | . . . . . . . . . . . . . . Corruption Blocked . | . . . . . . . . . . . . . . Effects 189 | . 3 27 33 . 22 19 21 6 17 14 12 13 2 Message Errors 42 | . . 7 8 . 4 6 3 2 3 3 4 1 1 Matter Fused 46 | . . 4 5 . 6 4 7 . 6 3 6 5 . Heat Flow Errors 21 | . 2 4 2 . 4 2 2 . 3 . 1 1 . Energy Discharges 22 | . . 2 7 . 4 3 2 . 2 2 . . . Parts Rejected 4 | . . 1 . . . . . . . 3 . . . Parts Fused 7 | . . . 1 . 1 . 1 . 1 1 . 1 1 Data Loss (minor) 18 | . 1 2 2 . 1 1 4 1 1 1 . 4 . Data Loss (major) 18 | . . 4 5 . 1 1 . 3 1 1 1 1 . Misfires 5 | . . . 2 . 1 1 1 . . . . . . Alerts 2 | . . . . . . 1 1 . . . . . . Weapon Failures 4 | . . 3 1 . . . . . . . . . . Overload Shots . | . . . . . . . . . . . . . . Overflow Damage 146 | . . 19 13 . 114 . . . . . . . . Projectiles 37 | . . 14 13 . 10 . . . . . . . . Explosions 71 | . . . . . 71 . . . . . . . . Melee 38 | . . 5 . . 33 . . . . . . . . Knockbacks 2 | . . . . . 2 . . . . . . . . Impact 2 | . . . . . 2 . . . . . . . . Kinetic . | . . . . . . . . . . . . . . Secondary . | . . . . . . . . . . . . . . Self-Inflicted Damage 171 | . 18 . . . . . . . . . . . 153 Shots 9 | . 1 . . . . . . . . . . . 8 Rammed 25 | . . 2 2 8 12 . . . . 1 . . . Targets Rammed 30 | . . 2 2 8 16 . . . 1 1 . . . Kicked 3 | . . . . . 2 . . . 1 . . . . Crushed 2 | . . . . . 2 . . . . . . . . Highest Temperature 342 | . 336 342 250 24 265 171 259 . 235 17 271 233 30 Average Temperature 87 | . 84 113 53 8 38 78 119 . 90 11 139 119 9 Received Heat Transfer 1824 | . 507 361 . 127 233 90 . . 33 185 . . 288 Effects 4 | . 1 2 . . 1 . . . . . . . . Shutdowns 1 | . . 1 . . . . . . . . . . . Energy Bleed 2 | . 1 1 . . . . . . . . . . . Interference 1 | . . . . . 1 . . . . . . . . Siege Activations . | . . . . . . . . . . . . . . Martial Activations . | . . . . . . . . . . . . . . Shielding Activations . | . . . . . . . . . . . . . . Robots Disrupted . | . . . . . . . . . . . . . . Combat Hostiles . | . . . . . . . . . . . . . . Robots Corrupted . | . . . . . . . . . . . . . . Combat Hostiles . | . . . . . . . . . . . . . . Parts Fried . | . . . . . . . . . . . . . . Impact Corruptions 1 | . . 1 . . . . . . . . . . . Robots Melted 4 | . . 1 1 1 1 . . . . . . . . Combat Hostiles 4 | . . 1 1 1 1 . . . . . . . . Parts Melted 23 | . 3 8 . 3 9 . . . . . . . . Heat Transferred 8271 | . 1345 3596 407 1517 1406 . . . . . . . . Parts Sabotaged . | . . . . . . . . . . . . . . Parts Stolen 1 | . . . . . . . . . . . . 1 . Parts Stripped . | . . . . . . . . . . . . . . Power Chain Reactions 1 | . 1 . . . . . . . . . . . . Alert | -11 -10 -9 -9 -8 -7 -7 -7 -7 -6 -6 -6 -6 -6 ------- Run | Yrd Mat Mat Min Mat Fac Low Low Dat Pro Fac Low Low Zio Maximum Alert Level 2 | . . 1 . . 2 . . . . . . . . Low Security (%) 82 | . 100 72 100 100 47 . . . . 100 . . . Level 1 9 | . . 27 . . 19 . . . . . . . . Level 2 8 | . . . . . 33 . . . . . . . . Level 3 . | . . . . . . . . . . . . . . Level 4 . | . . . . . . . . . . . . . . Level 5 . | . . . . . . . . . . . . . . High Security . | . . . . . . . . . . . . . . Max Security . | . . . . . . . . . . . . . . Peak Influence 465 | . 122 368 176 111 465 . . . . 155 . . . Initial 136 | . . 40 136 . 16 . . . . 41 . . . Average 98 | . 25 119 31 49 221 . . . . 47 . . . Influence Increases 3037 | . 355 722 93 285 878 130 20 . 120 389 . 45 . Destroy 0b10 Robot/C 2020 | . 200 500 80 160 540 120 20 . 100 260 . 40 . Destroy 0b10 Robot/NC 165 | . 5 50 . 15 75 . . . . 15 . 5 . Destroy Leader 474 | . 60 102 10 54 126 10 . . 20 92 . . . Allied During Kill 5 | . . . 3 2 . . . . . . . . . Successful Hack 62 | . 5 10 . 22 20 . . . . 5 . . . Disable Machine 135 | . 45 60 . . 30 . . . . . . . . Destroy Structure 116 | . 25 . . 2 87 . . . . 2 . . . Partial Spotted 15 | . 15 . . . . . . . . . . . . Lose Combat Pursuer 45 | . . . . 30 . . . . . 15 . . . Influence Decreases 3037 | . 257 470 443 247 486 524 56 . 54 366 89 45 . Entered New Map 521 | . . 58 214 . 22 160 8 . . 25 34 . . Time Decay 2419 | . 207 382 229 246 454 364 48 . 54 335 55 45 . Lost Part 96 | . 50 30 . . 10 . . . . 6 . . . Lost Ally 1 | . . . . 1 . . . . . . . . . Squads Dispatched 22 | . 3 2 . . 12 . . . . 5 . . . Investigation 5 | . 1 . . . 2 . . . . 2 . . . Extermination 7 | . . . . . 5 . . . . 2 . . . Reinforcement 7 | . 2 2 . . 2 . . . . 1 . . . Assault 1 | . . . . . 1 . . . . . . . . Garrison 2 | . . . . . 2 . . . . . . . . Intercept . | . . . . . . . . . . . . . . Searches Triggered . | . . . . . . . . . . . . . . Construction Impeded 1 | . . . . . 1 . . . . . . . . Haulers Reinforced . | . . . . . . . . . . . . . . Active Scanning Responses . | . . . . . . . . . . . . . . Cargo Convoy Interrupts 1 | . . . . . . . . . . 1 . . . Stealth | -11 -10 -9 -9 -8 -7 -7 -7 -7 -6 -6 -6 -6 -6 --------- Run | Yrd Mat Mat Min Mat Fac Low Low Dat Pro Fac Low Low Zio Distress Signals 13 | . . 2 . 3 4 . . . . 4 . . . Communications Jammed . | . . . . . . . . . . . . . . Distress Signals . | . . . . . . . . . . . . . . Times Spotted 221 | . 16 38 5 17 34 6 3 . 5 23 . 4 70 Peak Tracking Total 7 | . 5 6 3 6 7 3 2 . 4 7 . 3 5 Tactical Retreats 3 | . . . . 2 . . . . . 1 . . . Traps | -11 -10 -9 -9 -8 -7 -7 -7 -7 -6 -6 -6 -6 -6 ------- Run | Yrd Mat Mat Min Mat Fac Low Low Dat Pro Fac Low Low Zio Traps Triggered 6 | . 2 . 1 . 1 . . . . 2 . . . Indirectly . | . . . . . . . . . . . . . . Trap Hack Attempts . | . . . . . . . . . . . . . . Triggered . | . . . . . . . . . . . . . . Disarmed 1 | . . 1 . . . . . . . . . . . Reprogrammed . | . . . . . . . . . . . . . . Reused . | . . . . . . . . . . . . . . Traps Extracted . | . . . . . . . . . . . . . . Installed . | . . . . . . . . . . . . . . Triggered . | . . . . . . . . . . . . . . Machines | -11 -10 -9 -9 -8 -7 -7 -7 -7 -6 -6 -6 -6 -6 ---------- Run | Yrd Mat Mat Min Mat Fac Low Low Dat Pro Fac Low Low Zio Machines Disabled 11 | . 3 4 . . 2 . . . . . . . 2 Max in Single Turn 2 | . 2 1 . . 1 . . . . . . . 1 Garrison Access 2 | . . . . . 1 . . . . 1 . . . Machines Repaired . | . . . . . . . . . . . . . . Machines Dismantled . | . . . . . . . . . . . . . . Machines Sabotaged . | . . . . . . . . . . . . . . Overloaded Fab Kills . | . . . . . . . . . . . . . . Hacking | -11 -10 -9 -9 -8 -7 -7 -7 -7 -6 -6 -6 -6 -6 --------- Run | Yrd Mat Mat Min Mat Fac Low Low Dat Pro Fac Low Low Zio Machines Accessed 28 | . 1 4 1 6 6 1 . 4 . 5 . . . Terminals 16 | . 1 3 . 5 5 . . . . 2 . . . Fabricators . | . . . . . . . . . . . . . . Repair Stations 2 | . . . . 1 . . . . . 1 . . . Recycling Units 2 | . . 1 . . . . . . . 1 . . . Scanalyzers . | . . . . . . . . . . . . . . Garrison Access 2 | . . . . . 1 . . . . 1 . . . Total Hacks 87 | . 3 14 1 20 12 1 . 27 . 9 . . . Successful 52 | . 1 4 1 11 3 1 . 27 . 4 . . . Failed 35 | . 2 10 . 9 9 . . . . 5 . . . Catastrophic 7 | . . 2 . . 5 . . . . . . . . Database Lockouts . | . . . . . . . . . . . . . . Manual 42 | . 3 9 . 15 8 . . . . 3 . . 4 Terminals 47 | . 3 11 . 16 11 . . . . 6 . . . Fabricators . | . . . . . . . . . . . . . . Repair Stations 5 | . . . . 4 . . . . . 1 . . . Recycling Units 4 | . . 3 . . . . . . . 1 . . . Scanalyzers . | . . . . . . . . . . . . . . Garrison Access 2 | . . . . . 1 . . . . 1 . . . Terminal Hacks 40 | . . 4 1 3 2 1 . 27 . 2 . . . Record 11 | . . . . . . . . 11 . . . . . Part Schematic 9 | . . . . . . . . 9 . . . . . Robot Schematic 4 | . . . . . . . . 4 . . . . . Robot Analysis 1 | . . . . . 1 . . . . . . . . Prototype ID Bank 3 | . . . . . . . . 3 . . . . . Open Door 2 | . . . 1 . . 1 . . . . . . . Branch Access Points 3 | . . . . 1 1 . . . . 1 . . . Terminal Index 2 | . . 1 . 1 . . . . . . . . . Disarm Traps 1 | . . 1 . . . . . . . . . . . Hauler Manifests 1 | . . . . . . . . . . 1 . . . Zone Layout 3 | . . 2 . 1 . . . . . . . . . Fabricator Hacks . | . . . . . . . . . . . . . . Repair Station Hacks 3 | . . . . 3 . . . . . . . . . Scan Component 2 | . . . . 2 . . . . . . . . . Repair 1 | . . . . 1 . . . . . . . . . Recycling Unit Hacks 1 | . . . . . . . . . . 1 . . . Retrieve Matter 1 | . . . . . . . . . . 1 . . . Scanalyzer . | . . . . . . . . . . . . . . Garrison Access Hacks 2 | . . . . . 1 . . . . 1 . . . Seal Access 2 | . . . . . 1 . . . . 1 . . . Unauthorized Hacks 6 | . 1 . . 5 . . . . . . . . . Terminals 6 | . 1 . . 5 . . . . . . . . . Assimilate 1 | . . . . 1 . . . . . . . . . Botnet 2 | . 1 . . 1 . . . . . . . . . Operators 1 | . . . . 1 . . . . . . . . . Skim 2 | . . . . 2 . . . . . . . . . Fabricators . | . . . . . . . . . . . . . . Repair Stations . | . . . . . . . . . . . . . . Recycling Units . | . . . . . . . . . . . . . . Scanalyzers . | . . . . . . . . . . . . . . Garrison Access . | . . . . . . . . . . . . . . Data Cores Recovered 1 | . . . . 1 . . . . . . . . . Used . | . . . . . . . . . . . . . . Hacking Detections 20 | . 1 4 . 6 5 . . . . 4 . . . Full Trace Events 4 | . . . . 1 2 . . . . 1 . . . Feedback Events 1 | . . . . . 1 . . . . . . . . Hackware Fried 1 | . . . . . 1 . . . . . . . . Feedback Blocked . | . . . . . . . . . . . . . . Robot Schematics Acquired 4 | . . . . . . . . 4 . . . . . Robots Built . | . . . . . . . . . . . . . . Authchips . | . . . . . . . . . . . . . . Time . | . . . . . . . . . . . . . . Total Robot Build Rating . | . . . . . . . . . . . . . . Part Schematics Acquired 9 | . . . . . . . . 9 . . . . . Parts Built . | . . . . . . . . . . . . . . Authchips . | . . . . . . . . . . . . . . Time . | . . . . . . . . . . . . . . Total Part Build Rating . | . . . . . . . . . . . . . . Part Studies Acquired . | . . . . . . . . . . . . . . Parts Repaired 1 | . . . . 1 . . . . . . . . . Time 26 | . . . . 26 . . . . . . . . . Parts Recycled . | . . . . . . . . . . . . . . Recycled Matter . | . . . . . . . . . . . . . . Retrieved Matter . | . . . . . . . . . . . . . . Retrieved Components . | . . . . . . . . . . . . . . Parts Scanalyzed . | . . . . . . . . . . . . . . Part Schematics Acquired . | . . . . . . . . . . . . . . Parts Damaged . | . . . . . . . . . . . . . . Bothacking | -11 -10 -9 -9 -8 -7 -7 -7 -7 -6 -6 -6 -6 -6 ------------ Run | Yrd Mat Mat Min Mat Fac Low Low Dat Pro Fac Low Low Zio Used RIF Installer . | . . . . . . . . . . . . . . Robots Hacked 3 | . . . . . . . . . . . . . 3 Non-combat . | . . . . . . . . . . . . . . Combat 3 | . . . . . . . . . . . . . 3 Robot Hacks Applied 3 | . . . . . . . . . . . . . 3 parse_system 3 | . . . . . . . . . . . . . 3 Relay Couplers Released . | . . . . . . . . . . . . . . Fabnet Peak Effective % . | . . . . . . . . . . . . . . Robots Rewired . | . . . . . . . . . . . . . . Allies Hacked . | . . . . . . . . . . . . . . Hacks Repelled . | . . . . . . . . . . . . . . Allies | -11 -10 -9 -9 -8 -7 -7 -7 -7 -6 -6 -6 -6 -6 -------- Run | Yrd Mat Mat Min Mat Fac Low Low Dat Pro Fac Low Low Zio Total Allies 3 | . . . 1 . . . . . . . . . 2 Largest Group 2 | . . . 1 1 . . . . . . . . 2 Highest-Rated Group 192 | . . . 31 31 . . . . . . . . 192 Highest-Rated Ally 96 | . . . 31 31 . . . . . . . . 96 Total Orders . | . . . . . . . . . . . . . . Ally Attacks 95 | . . . 4 6 . . . . . . . . 85 Total Damage 2481 | . . . 62 85 . . . . . . . . 2334 Kills 22 | . . . . . . . . . . . . . 22 Allies Corrupted . | . . . . . . . . . . . . . . Allies Melted . | . . . . . . . . . . . . . . Intel | -11 -10 -9 -9 -8 -7 -7 -7 -7 -6 -6 -6 -6 -6 ------- Run | Yrd Mat Mat Min Mat Fac Low Low Dat Pro Fac Low Low Zio Active Infowar (turns) 2421 | . . . . . . 1 . . . . . . 2420 Optics 2420 | . . . . . . . . . . . . . 2420 ECM 1 | . . . . . . 1 . . . . . . . Robot Analysis Total 1 | . . . . . 1 . . . . . . . . Derelict Logs Recovered 8 | . . . 1 . . 1 2 . . . 1 2 1 Drone Launches . | . . . . . . . . . . . . . . Drone Recoveries . | . . . . . . . . . . . . . . Exploration | -11 -10 -9 -9 -8 -7 -7 -7 -7 -6 -6 -6 -6 -6 ------------- Run | Yrd Mat Mat Min Mat Fac Low Low Dat Pro Fac Low Low Zio Turns Passed 12189 | . 585 938 1148 525 1537 901 743 223 710 1259 363 717 2540 Spaces Moved 5769 | 1 254 355 572 212 761 378 342 102 312 564 224 421 1271 Core 5 | . . . . . . . . . . . . . 5 Treads 3998 | . 158 355 572 212 328 . . . . 462 224 421 1266 Legs 1766 | 1 96 . . . 433 378 342 102 312 102 . . . Wheels . | . . . . . . . . . . . . . . Hover . | . . . . . . . . . . . . . . Flight . | . . . . . . . . . . . . . . Fastest Speed 120 | 120 120 160 160 160 133 216 216 216 216 160 160 160 160 Average Speed 172 | 120 153 165 160 160 156 216 216 216 216 169 160 160 162 Slowest Speed 800 | 120 330 240 160 162 250 216 216 216 216 240 160 160 800 Overloaded Moves . | . . . . . . . . . . . . . . Propulsion Burnouts . | . . . . . . . . . . . . . . Robots Hopped . | . . . . . . . . . . . . . . Potential Cave-ins 4 | . . . . . 4 . . . . . . . . Cave-ins Triggered . | . . . . . . . . . . . . . . Exploration Rate (%) 47 | 2 45 41 96 24 29 54 58 70 53 16 37 52 88 Regions Visited 13 Branch Regions 8 Pre-discovered Areas 6 | . . . 1 . . . 1 1 . . . 1 2 Known Exits Taken 3 | . . . . 1 1 . . . . 1 . . . Unknown Exits Taken 10 | 1 1 1 1 . . 1 1 1 1 . 1 1 . Scrap Searched 13 | . . . 2 . . 1 3 . . . 1 3 3 Spaces Dug 15 | . . . . 3 11 . . . . 1 . . . Terrain Destroyed 146 | . 27 . . 3 90 . . . 25 1 . . . Melee 15 | . . . . 3 11 . . . . 1 . . . Projectile 1 | . . . . . 1 . . . . . . . . AOE 130 | . 27 . . . 78 . . . 25 . . . . Terrain Rammed . | . . . . . . . . . . . . . . Walls Destroyed . | . . . . . . . . . . . . . . Machines Disabled . | . . . . . . . . . . . . . . Actions | -11 -10 -9 -9 -8 -7 -7 -7 -7 -6 -6 -6 -6 -6 --------- Run | Yrd Mat Mat Min Mat Fac Low Low Dat Pro Fac Low Low Zio Total 7038 | . 373 546 785 328 950 421 343 105 325 726 229 437 1470 Wait 362 | . 32 53 194 35 19 3 . . . 13 . . 13 Move 5756 | . 253 354 571 211 760 377 341 101 311 563 223 420 1271 Hop . | . . . . . . . . . . . . . . Pick Up 84 | . 14 16 2 10 15 5 . . . 14 1 1 6 Fast Attach 61 | . 4 9 2 2 11 4 . 2 . 19 2 . 6 Attach 44 | . 6 6 . 7 3 . . . . 10 . 2 10 Detach 3 | . . 1 . . . . . . . 1 . . 1 Swap 61 | . 6 6 . 6 19 2 . . 2 9 . . 11 Drop 123 | . 13 17 4 14 26 7 . 2 . 26 3 . 11 Fire 485 | . 45 82 10 32 69 23 2 . 11 68 . 14 129 Melee 29 | . . . . 3 12 . . . . 2 . . 12 Ram . | . . . . . . . . . . . . . . Kick 3 | . . . . . 2 . . . 1 . . . . Crush 27 | . . 2 2 8 14 . . . . 1 . . . Escape Stasis . | . . . . . . . . . . . . . . Rewire . | . . . . . . . . . . . . . . Trap . | . . . . . . . . . . . . . . Miscellaneous . | . . . . . . . . . . . . . . Route ------- -11/Scrapyard -10/Materials -9/Materials (discovered 2 exits: *Mat / *Min) -9/Mines (discovered 2 exits: *Mat x2) -8/Materials -7/Factory (discovered 2 exits: *Low x2) -7/Lower Caves -7/Lower Caves -7/Data Miner -6/Proximity Caves -6/Factory (discovered 3 exits: [*Fac] / *Low x2) -6/Lower Caves -6/Lower Caves -6/Zion (discovered 1 exit: [*Pro]) History --------- Turn | Location | Event 1 | -11/Scrapyard | Discovered new exit (range 0) 1 | -11/Scrapyard | Entered Materials 305 | -10/Materials | Build established: Mutant 454 | -10/Materials | Lost 4 parts (1p1n2w) 495 | -10/Materials | Discovered new exit (range 16) 501 | -10/Materials | Core integrity fell below 50% 586 | -10/Materials | Entered another Materials area 586 | -9/Materials | Evolved 2 slots: Propulsion x1, Utility x1 896 | -9/Materials | Discovered new exit (range 8) 1053 | -9/Materials | Discovered new exit (range 14) 1414 | -9/Materials | Core integrity fell below 50% 1524 | -9/Materials | Entered Mines 1540 | -9/Mines | Escorted by a lone wolf Derelict 1560 | -9/Mines | Learned location of Storage (-9) 1583 | -9/Mines | Assembled infested the area 1989 | -9/Mines | Learned location of 1 exit from Materials 2054 | -9/Mines | Met a Derelict who couldn't figure out how to use a Trap Extractor 2144 | -9/Mines | Received a Rocket Launcher from a helpful Derelict 2193 | -9/Mines | Discovered new exit (range 6) 2435 | -9/Mines | Discovered new exit (range 6) 2672 | -9/Mines | Entered Materials 2672 | -8/Materials | Accompanied by 1 ally 2672 | -8/Materials | Evolved 2 slots: Propulsion x1, Utility x1 2673 | -8/Materials | Identified exit to Factory 2955 | -8/Materials | Repaired Lgt. Treads 2977 | -8/Materials | Build established: Scavenger-Mutant 3197 | -8/Materials | Entered Factory 3197 | -7/Factory | Evolved 2 slots: Power x1, Utility x1 4008 | -7/Factory | Hacking Suite fried by hacking feedback 4091 | -7/Factory | Garrison activated, responded to threat 4207 | -7/Factory | Build established: Mutant 4397 | -7/Factory | First assault squad dispatched 4434 | -7/Factory | Identified exit to Lower Caves 4542 | -7/Factory | Found Prototype Launcher 4542 | -7/Factory | Identified Rocket Array 4546 | -7/Factory | Found Rocket Array 4734 | -7/Factory | Entered Lower Caves 5186 | -7/Lower Caves | Learned 4 Factory zone layouts 5577 | -7/Lower Caves | Attracted the attention of an 0b10 checkpoint 5618 | -7/Lower Caves | Discovered new exit (range 9) 5635 | -7/Lower Caves | Entered another Lower Caves area 5957 | -7/Lower Caves | Learned Factory non-interactive machine intel 6073 | -7/Lower Caves | Encountered a Warlord checkpoint 6287 | -7/Lower Caves | Discovered new exit (range 7) 6378 | -7/Lower Caves | Entered Data Miner 6380 | -7/Data Miner | Discovered new exit (range 6) 6421 | -7/Data Miner | Met Data Miner 6490 | -7/Data Miner | Learned location of Section 7 (-2) 6490 | -7/Data Miner | Acquired the access code to Warlord's prototype stash 6516 | -7/Data Miner | Received God Mode back door access code from Data Miner 6601 | -7/Data Miner | Entered Proximity Caves 7268 | -6/Proximity Caves | Discovered new exit (range 14) 7311 | -6/Proximity Caves | Entered Factory 7311 | -6/Factory | Evolved 2 slots: Utility x2 7313 | -6/Factory | Loaded intel: 227 non-interactive machine locations 7854 | -6/Factory | Discovered new exit (range 12) 8175 | -6/Factory | Identified exit to Lower Caves 8268 | -6/Factory | Cargo convoy interrupted 8570 | -6/Factory | Entered Lower Caves 8868 | -6/Lower Caves | Discovered new exit (range 7) 8904 | -6/Lower Caves | Learned location of 1 exit from Factory 8933 | -6/Lower Caves | Entered another Lower Caves area 9488 | -6/Lower Caves | Learned 4 Factory zone layouts 9609 | -6/Lower Caves | Discovered new exit (range 7) 9650 | -6/Lower Caves | Entered Zion 9676 | -6/Zion | Given A8's code to call for help 9700 | -6/Zion | System corruption cleaned by Quarantine Array 9735 | -6/Zion | Discovered new exit (range 9) 9764 | -6/Zion | Found Prototype Processor 9764 | -6/Zion | Identified Exp. Signal Interpreter 9773 | -6/Zion | Found Prototype Hackware 9776 | -6/Zion | Found Prototype Processor 9776 | -6/Zion | Identified Exp. Armor Integrity Analyzer 10015 | -6/Zion | Found Unknown Piercing Weapon 10246 | -6/Zion | Met Imprinter 10405 | -6/Zion | Learned Factory garrison access intel 10441 | -6/Zion | Visited the Megawrench Repair Shop 10497 | -6/Zion | Learned location of Warlord (-4) 10638 | -6/Zion | Learned location of 1 exit from Factory 10897 | -6/Zion | Megawrench repaired 14 parts 11173 | -6/Zion | Enhanced Grunt warped into view, answering call for help 11176 | -6/Zion | Enhanced Grunt warped into view, answering call for help 11339 | -6/Zion | Attacked by Zionites 11352 | -6/Zion | Destroyed Imprinter 11366 | -6/Zion | Extracted access codes from Imprinter's data core 11510 | -6/Zion | Opened final containment barrier to the Deep Caves 11966 | -6/Zion | Spotted E5-NB7(B) 11980 | -6/Zion | Spotted EG-D0S(B) 12026 | -6/Zion | Identified CR-A16's Pointy Stick 12108 | -6/Zion | Lost 8 parts (2p2n4u) 12160 | -6/Zion | Core integrity fell below 50% 12180 | -6/Zion | Core integrity fell below 20% 12190 | -6/Zion | Destroyed by CR-A16 with Phasing Sabre Last Messages --------------- 12176_ 5X-H2X(z) overheating. 12177_ 5X-H2X(z) heat spikes uncontrollably. 12177_ 5X-H2X(z) overheating. 12179_ 5X-H2X(z) heat damages core (-3). 12179_ 5X-H2X(z) overheating. 12182_ 5X-H2X(z) heat damages core (-2). 12182_ 5X-H2X(z) overheating. 12183_ 5X-H2X(z) pulls a Mak. Axe out of the Twisted Machinery. 12183_ 5X-H2X(z) overheating. 12184_ 5X-H2X(z) heat damages Mak. Leg. 12184_ 5X-H2X(z) overheating. 12185_ 5X-H2X(z) heat damages Mak. Leg. 12185_ 5X-H2X(z) overheating. 12188_ 5X-H2X(z) heat short circuits Mak. Power Source. 12188_ 5X-H2X(z) overheating. 12189_ Rocket Array destroyed. 12189_ Acquired 18 matter. 12189_ 5X-H2X(z) overheating. 12190_ 5X-H2X(z) heat damages Mak. Axe. 12190_ 5X-H2X(z) overheating. Map ----- +----------------------------------------------------+ | """ """""" #?????????????????? | | """"" " ##?????????????????? | | " "" ##??????????????????? | | " """ * / """" "" "#???????????????????? | | """" = """" """""""#???????????????????? | | "" * " = %[ ""#"####???????????????????? | | %* ""###??????????????????????? | | = * = """#????????????????????????? | | =%! %! #"#????????????????????????? | | "#""#""#" "" * ##?????????????????????????? | | """""""""" " " "#######???????????????????? | | """"""###"" "" """""""##??????????????????# | | #######?##"" """"" """"""""#?????????????????## | | ?????????##" """" "" ""##????????????????# | | ?????????#"" "" "" "#????????????????## | | ?????????#"" %"%"" "" "##?????????????????? | | ?????????##" =!=!* " "#?????????????????? | | ?????????#"" ! "##?????????????????# | | ?????????#"" """ % ""#?????????????????## | | ?????????#"" """" % % "##?????????????????# | | ?????????#"" #"""" % "###??#####???????????# | | ?????????#"" """""BB! %##????# "############# | | ?????????#"" """""BB%= ;####?# """"""""""""## | | ????????##"" [=!% """##;% """"""""""""## | | ??????###""" l % ; ### | | ??????#"""" = *@* / % | | ??????##"" %! =%!=/ | | ??????##" " =%%!; ### | | ??????#"" "" "" ;;; """"""""""""#?# | | ??????##"" " "";## ; """"""""""""#?# | | ???????##" " " ""#?## "############?# | | ???????##""" M ""#??#####????????????? | | ???????#""#" "" z "" ""#???????????????????? | | ???????#"" " """ """" ""#???????????????????? | | ???????#" """ """""" ""#???????????????????? | | ???????#<<] """"#""""##???????????????????? | | ???????#" """"""""""#???????????????????? | | ???????##" """#???????????????????? | | ????????#" " "###???????????????????? | | ????#####" """"""""" """#???????????????????? | | #####"##"" """"#""#" """????????????????????? | | "#"#"""""" #"""####"" ""?????????????????????? | | """"""""" % #""#"##""" ???????????????????????? | | """""""#"" ????????????????????????? | | ""#??????????????????????????? | | "#"""???????????????????????? | | """""???????????????????????? | | "" """ """#""????????????????????????? | | "" "" """"#""?????????????????????????? | | "" """###???????????????????????????? | +----------------------------------------------------+ Best States ------------- Heat Dissipation 59 Energy Generation 32 Energy Capacity 710 Matter Stores 300 Matter Capacity 300 Sight Range 23 Terrain Scan Density 10 Armor Coverage 750 Resistance: EM 15 Weapon Shielding 33 Evasion (%) 55 Recoil Reduction 4 Salvage Targeting 2 Offensive Hacking 21 Item Schematics ----------------- Combat Drone Bay | -7/Data Miner | Free Lgt. Regenerative Plating | -7/Data Miner | Free Multireflex Exoskeleton | -7/Data Miner | Free Gravity Neutralizer | -7/Data Miner | Free Cld. Plasma Cannon | -7/Data Miner | Free Gyrokinetic Inverter | -7/Data Miner | Free Point Defense System | -7/Data Miner | Free Enh. Gauss Cannon | -7/Data Miner | Free Adv. Plasma Cannon | -7/Data Miner | Free Robot Schematics ------------------ G-47 Trooper | -7/Data Miner | Free A-15 Conveyor | -7/Data Miner | Free R-10 Processor | -7/Data Miner | Free G-50 Soldier | -7/Data Miner | Free Fabricated ------------ Nothing Repaired ---------- Lgt. Treads | 12% | -8/Materials Studied --------- None Alien Tech Used ----------------- None Achievements -------------- Jackpot Challenges ------------ None Game ------ Seed CargoThiefLog Manual? 0 Play Time 01:16:32 Cumulative 455.7 hours Start 2026.01.10 @ 22:16:25 End 2026.01.10 @ 23:34:52 Sessions 1 Manual Loads 0 Difficulty Rogue Special Mode None Game No. 463 Rogue 463 Adventurer 0 Explorer 0 Win Type - Total 31 Types 16/3/6/1/2/0/3/0/0/0 Lore% 89 Gallery% 81 Achievement% 52 Wizard Run 0 Options --------- Layout 0 ASCII 0 Keyboard 0 Movement Arrows Keybinds 0 Fullscreen 2 Font 24/Smallcaps Map View 76x50 Zoom Use 0% Tactical HUD 1 Map Filters NONE Filters NONE Steam 1 RUN: d8ac9e18-b171-40e8-a9bb-8d7a9b935f54